bitfinex-derivatives/quotes_SOLF0:USTF0_20241208
["timestamp","ask_amount","ask_price","bid_price","bid_amount"]
[1733631186778,8.41242988,241.17,241.14,2.0719]
[1733631187373,2.0719,241.15,241.11,2.0721]
[1733631187581,6.34082988,241.15,241.07,1.82]
[1733631188173,2.072,241.13,241.07,1.82]
[1733631188375,6.34082988,241.15,241.09,2.0723]
[1733631189585,2.072,241.13,241.09,2.0723]
[1733631189982,6.34082988,241.15,241.1,2.0722]
[1733631190186,2.0719,241.14,241.1,2.0722]
[1733631190783,4.5272,241.19,241.16,2.0717]
[1733631190784,1.3489,241.19,241.16,2.0717]
[1733631190985,7.68972988,241.19,241.11,6.34082988]
[1733631193692,2.0716,241.18,241.14,2.0718]
[1733631195892,2.0715,241.19,241.13,6.34082988]
[1733631196096,2.0715,241.19,241.15,6.34082988]
[1733631196790,2.0714,241.21,241.17,2.0716]
[1733631198692,6.34082988,241.23,241.17,2.0716]
[1733631198897,2.0714,241.2,241.17,2.0716]
[1733631201394,2.0714,241.2,241.15,6.34082988]
[1733631201395,2.0714,241.2,241.16,2.0717]
[1733631202702,2.0716,241.18,241.15,6.34082988]
[1733631203592,2.0715,241.19,241.15,8.41262988]
[1733631203791,6.34082988,241.22,241.15,6.34082988]
[1733631204592,2.0714,241.2,241.16,2.0716]
[1733631207101,2.0714,241.2,241.17,2.0716]
[1733631207299,2.0714,241.2,241.15,6.34082988]
[1733631207503,2.0714,241.2,241.13,1.82]
[1733631207703,2.0714,241.2,241.15,2.0717]
[1733631207895,2.0715,241.18,241.15,2.0717]
[1733631208092,6.34082988,241.22,241.15,2.0717]
[1733631209501,2.0715,241.19,241.15,2.0717]
[1733631211806,2.0715,241.19,241.15,8.41252988]
[1733631212710,2.0715,241.19,241.16,2.0717]
[1733631212898,2.0714,241.2,241.16,2.0717]
[1733631213301,12.44,241.46,241.19,6.34082988]
[1733631213507,12.44,241.46,241.23,6.34082988]
[1733631213508,6.34082988,241.32,241.23,6.34082988]
[1733631213705,6.34082988,241.32,241.25,6.34082988]
[1733631213903,2.0705,241.3,241.25,6.34082988]
[1733631214104,6.34082988,241.32,241.25,6.34082988]
[1733631214703,2.0707,241.29,241.25,6.34082988]
[1733631215805,6.34082988,241.3,241.24,2.071]
[1733631215997,2.0707,241.28,241.24,2.071]
[1733631219006,6.34082988,241.3,241.23,6.34082988]
[1733631219308,6.34082988,241.24,241.17,6.34082988]
[1733631219701,2.071,241.25,241.21,2.0712]
[1733631219909,2.071,241.25,241.19,6.34082988]
[1733631220107,6.34082988,241.26,241.19,6.34082988]
[1733631220706,8.41172988,241.26,241.21,2.0713]
[1733631221912,2.071,241.25,241.21,2.0713]
[1733631222111,6.34082988,241.24,241.16,1.82]
[1733631222307,6.34082988,241.24,241.17,10.89938487]
[1733631222608,6.34082988,241.24,241.18,1.05308302]
[1733631222810,6.34082988,241.24,241.19,1.05308302]
[1733631223012,6.34082988,241.24,241.17,8.16082988]
[1733631223407,6.34082988,241.24,241.18,1.0526141]
[1733631223605,6.34082988,241.24,241.19,2.0714]
[1733631223606,2.0712,241.22,241.19,2.0714]
[1733631224210,6.34082988,241.24,241.18,1.0526141]
[1733631224410,6.34082988,241.22,241.18,1.0526141]
[1733631224811,2.0714,241.2,241.18,1.0526141]
[1733631231213,2.0715,241.19,241.18,1.0526141]
[1733631231821,2.0715,241.19,241.15,6.34082988]
[1733631231822,2.0716,241.18,241.15,6.34082988]
[1733631232023,2.0716,241.18,241.16,1.05319782]
[1733631232322,2.0716,241.18,241.17,1.05319782]
[1733631233420,2.0716,241.18,241.15,6.34082988]
[1733631233722,2.0716,241.18,241.16,1.05361154]
[1733631233926,2.0716,241.18,241.14,2.0719]
[1733631234118,6.34082988,241.2,241.15,1.05360993]
[1733631234313,2.0716,241.17,241.16,1.05360993]
[1733631235218,2.0716,241.17,241.14,2.0719]
[1733631235818,6.34082988,241.2,241.07,2.51603854]
[1733631236023,2.072,241.14,241.11,6.34082988]
[1733631236223,2.072,241.14,241.12,1.05413997]
[1733631236421,2.072,241.14,241.11,6.34082988]
[1733631236615,2.072,241.14,241.12,1.05464275]
[1733631236815,2.072,241.14,241.11,6.34082988]
[1733631237525,2.072,241.14,241.11,8.41292988]
[1733631237718,6.34082988,241.16,241.02,44.11268048]
[1733631237927,6.34082988,241.16,241.09,6.34082988]
[1733631238115,1.82,241.18,241.15,6.34082988]
[1733631239726,6.34082988,241.21,241.15,6.34082988]
[1733631240718,2.0714,241.2,241.15,6.34082988]
[1733631240924,6.34082988,241.21,241.15,6.34082988]
[1733631241327,6.34082988,241.19,241.13,6.34082988]
[1733631241926,2.0717,241.17,241.13,6.34082988]
[1733631242118,6.34082988,241.19,241.11,6.34082988]
[1733631242427,6.34082988,241.19,241.12,1.03684575]
[1733631242627,6.34082988,241.19,241.11,6.34082988]
[1733631242828,6.34082988,241.19,241.12,1.03684866]
[1733631243022,6.34082988,241.19,241.11,6.34082988]
[1733631243229,2.0718,241.16,241.11,8.41292988]
[1733631243427,1.82,241.22,241.08,1.82]
[1733631243627,6.34082988,241.17,241.09,7.37783003]
[1733631243829,2.072,241.14,241.09,8.41302988]
[1733631244027,6.34082988,241.17,241.09,8.41302988]
[1733631244226,1.82,241.22,241.11,6.34082988]
[1733631244424,6.34082988,241.18,241.07,1.82]
[1733631244626,6.34082988,241.18,241.09,6.34082988]
[1733631244829,6.34082988,241.18,241.11,6.34082988]
[1733631245727,2.0718,241.15,241.11,6.34082988]
[1733631245929,6.34082988,241.18,241.11,6.34082988]
[1733631246324,2.072,241.14,241.11,6.34082988]
[1733631246630,2.072,241.14,241.07,1.82]
[1733631246631,6.34082988,241.13,241.06,6.34082988]
[1733631246822,6.34082988,241.13,241.07,1.03705186]
[1733631247025,2.0722,241.1,241.06,8.41332988]
[1733631247230,2.0722,241.1,241.07,1.03705798]
[1733631247535,6.34082988,241.13,241.06,6.34082988]
[1733631247728,2.0723,241.09,241.07,1.0370582]
[1733631248032,2.0723,241.09,241.06,6.34082988]
[1733631248234,2.0723,241.09,241.07,1.0370559]
[1733631248425,2.0723,241.09,241.06,6.34082988]
[1733631248825,1.82,241.15,241.02,42.88658607]
[1733631248826,6.34082988,241.13,241.02,42.88658607]
[1733631249031,2.0723,241.1,241.06,6.34082988]
[1733631249937,2.0721,241.11,241.08,6.34082988]
[1733631252133,8.16082988,241.15,241.08,6.34082988]
[1733631252336,2.072,241.13,241.09,2.0723]
[1733631254441,6.34082988,241.15,241.08,6.34082988]
[1733631254733,2.0721,241.12,241.08,8.41322988]
[1733631255140,2.0722,241.1,241.03,1.82]
[1733631255341,2.0722,241.1,241.07,6.34082988]
[1733631255840,2.0721,241.12,241.07,8.41332988]
[1733631256231,2.0721,241.12,241.09,6.34082988]
[1733631256841,2.0721,241.12,241.09,8.41312988]
[1733631258738,2.0721,241.12,241.09,6.34082988]
[1733631260043,6.34082988,241.15,241.07,6.34082988]
[1733631260243,6.34082988,241.13,241.05,6.34082988]
[1733631260441,2.5824,241.16,241.05,6.34082988]
[1733631260442,6.34082988,241.11,241.05,6.34082988]
[1733631261142,2.0724,241.08,241.05,6.34082988]
[1733631262445,6.34082988,241.11,241.05,6.34082988]
[1733631262446,2.0725,241.07,241.05,6.34082988]
[1733631268853,1.82,241.12,241.05,6.34082988]
[1733631269049,2.0726,241.06,241.05,6.34082988]
[1733631274751,1.82,241.12,241.05,6.34082988]
[1733631274957,2.0725,241.07,241.05,6.34082988]
[1733631280554,2.0725,241.07,241.06,1.0371604]
[1733631281054,2.0725,241.07,241.05,6.34082988]
[1733631281360,2.0725,241.07,241.06,1.03717104]
[1733631284655,2.0725,241.07,241.06,1.03716403]
[1733631284853,2.0725,241.07,241.05,6.34082988]
[1733631285165,2.0725,241.07,241.06,1.03717468]
[1733631287763,2.0726,241.06,241.02,53.12031595]
[1733631287960,2.0726,241.06,241.03,1.03719559]
[1733631288163,2.0726,241.06,241.04,7.37802547]
[1733631288362,2.0726,241.06,241.05,1.03719559]
[1733631291563,2.0726,241.06,241.04,6.34082988]
[1733631291762,2.0726,241.06,241.05,1.03750877]
[1733631295060,2.0726,241.06,241.04,6.34082988]
[1733631295264,2.0726,241.06,241.05,1.03760009]
[1733631295461,2.0726,241.06,241.04,6.34082988]
[1733631295668,2.0726,241.06,241.05,1.03765846]
[1733631297668,2.0726,241.06,241.05,2.69861686]
[1733631298065,2.0726,241.06,241.05,1.03765846]
[1733631298670,2.0726,241.06,241.04,6.34082988]
[1733631298869,2.0726,241.06,241.05,1.03790215]
[1733631299471,2.0726,241.06,241.05,2.69926062]
[1733631299674,8.16082988,241.12,241.05,2.69926062]
[1733631299974,2.0725,241.07,241.06,1.03790215]
[1733631300476,2.0725,241.07,241.06,1.03788798]
[1733631302672,6.34082988,241.08,241.0,52.64776165]
[1733631302866,6.34082988,241.08,241.01,1.03863617]
[1733631303072,6.34082988,241.08,241.02,1.03863617]
[1733631303276,6.34082988,241.08,241.0,58.98859153]
[1733631303471,6.34082988,241.08,241.01,1.03864712]
[1733631303667,2.0728,241.03,241.02,1.03864712]
[1733631303966,6.34082988,241.04,241.0,50.82776165]
[1733631304171,2.0727,241.05,241.0,50.82776165]
[1733631304374,6.34082988,241.06,241.0,50.82776165]
[1733631305474,6.34082988,241.06,241.0,57.16859153]
[1733631305977,2.0727,241.05,241.02,6.34082988]
[1733631306170,3.1234,241.07,241.02,6.34082988]
[1733631306480,1.3034,241.07,241.02,6.34082988]
[1733631306979,1.3604,241.09,241.04,6.34082988]
[1733631308572,4.1426,241.22,241.08,6.34082988]
[1733631308779,6.34082988,241.16,241.08,6.34082988]
[1733631308978,6.34082988,241.16,241.0,50.82776165]
[1733631308979,6.34082988,241.17,241.1,8.41302988]
[1733631309172,6.34082988,241.19,241.12,6.34082988]
[1733631310275,1.82,241.2,241.12,8.41282988]
[1733631310469,7.69782988,241.21,241.12,6.34082988]
[1733631310779,2.0715,241.19,241.14,6.34082988]
[1733631311681,2.0715,241.19,241.14,8.41272988]
[1733631312179,7.69782988,241.21,241.14,6.34082988]
[1733631312378,2.0715,241.18,241.14,6.34082988]
[1733631315479,2.0715,241.18,241.14,8.41272988]
[1733631315883,2.0715,241.18,241.14,6.34082988]
[1733631316079,2.0716,241.17,241.14,6.34082988]
[1733631318591,2.0715,241.18,241.14,6.34082988]
[1733631323290,2.6151,241.23,241.16,6.34082988]
[1733631323590,2.0713,241.21,241.17,2.0716]
[1733631323790,2.0713,241.21,241.02,1.22668719]
[1733631323791,1.3465,241.28,241.2,6.34082988]
[1733631324088,2.0711,241.24,241.2,6.34082988]
[1733631324686,2.0711,241.23,241.2,6.34082988]
[1733631325591,2.0711,241.23,241.19,2.0714]
[1733631326789,6.34082988,241.25,241.21,2.0712]
[1733631326790,2.071,241.25,241.21,2.0712]
[1733631332799,2.0709,241.26,241.22,2.0711]
[1733631338195,6.34082988,241.24,241.13,1.3404]
[1733631338392,6.34082988,241.24,241.17,6.34082988]
[1733631339587,2.0712,241.22,241.19,2.0714]
[1733631340599,6.34082988,241.22,241.16,1.82]
[1733631341195,2.0715,241.18,241.15,2.0717]
[1733631345498,2.0715,241.19,241.15,2.0717]
[1733631346296,2.0715,241.19,241.14,8.16082988]
[1733631346493,2.0715,241.19,241.16,2.0717]
[1733631351393,6.34082988,241.22,241.06,3.9446]
[1733631351594,6.34082988,241.16,241.09,6.34082988]
[1733631351798,6.34082988,241.18,241.11,6.34082988]
[1733631352701,2.0719,241.15,241.11,8.41292988]
[1733631354599,2.0719,241.15,241.11,6.34082988]
[1733631354895,6.34082988,241.18,241.12,2.072]
[1733631355102,2.0717,241.16,241.12,2.072]
[1733631356905,1.82,241.23,241.16,2.0717]
[1733631357107,6.34082988,241.21,241.15,6.34082988]
[1733631357305,6.34082988,241.17,241.04,1.22428935]
[1733631357501,6.34082988,241.17,241.11,2.0721]
[1733631359806,2.0718,241.15,241.11,2.0721]
[1733631360799,6.34082988,241.17,241.11,2.0721]
[1733631361006,2.0719,241.14,241.11,2.0721]
[1733631361508,2.0719,241.14,241.1,8.16082988]
[1733631362110,2.0719,241.14,241.1,10.23302988]
[1733631362906,2.0719,241.14,241.1,8.41302988]
[1733631363113,6.34082988,241.15,241.08,10.23312988]
[1733631363609,6.34082988,241.15,241.08,8.41312988]
[1733631363808,1.82,241.18,241.04,2.0727]
[1733631363809,6.34082988,241.13,241.04,2.0727]
[1733631364013,6.34082988,241.11,241.05,6.34082988]
[1733631365411,2.0725,241.08,241.04,2.0727]
[1733631365608,6.34082988,241.11,241.04,8.41352988]
[1733631366311,2.0725,241.07,241.04,6.34082988]
[1733631366615,6.34082988,241.11,241.04,6.34082988]
[1733631366815,1.3426,241.12,241.04,6.34082988]
[1733631367114,7.68342988,241.12,241.04,6.34082988]
[1733631367818,2.0725,241.07,241.04,6.34082988]
[1733631369210,2.0725,241.07,241.02,1.82]
[1733631369410,2.0725,241.07,241.03,6.34082988]
[1733631372013,1.3426,241.12,241.03,6.34082988]
[1733631372214,6.34082988,241.11,241.03,6.34082988]
[1733631373519,2.0726,241.07,241.03,6.34082988]
[1733631374418,2.0726,241.07,241.02,1.82]
[1733631374616,2.0726,241.07,241.04,6.34082988]
[1733631374916,2.073,241.02,241.0,50.85001375]
[1733631375121,1.3426,241.12,240.99,6.34082988]
[1733631375122,6.34082988,241.05,240.99,6.34082988]
[1733631375319,6.34082988,241.05,240.97,10.23412988]
[1733631375514,6.34082988,241.05,240.99,6.34082988]
[1733631376013,6.34082988,241.05,240.97,10.23412988]
[1733631376411,6.34082988,241.05,240.97,8.41412988]
[1733631377017,6.34082988,241.05,240.97,2.0733]
[1733631377219,2.0731,241.0,240.96,2.0734]
[1733631377522,2.0731,241.0,240.96,8.41422988]
[1733631377717,2.0731,241.0,240.96,2.0734]
[1733631378016,2.0733,240.98,240.94,6.34082988]
[1733631378619,6.34082988,241.01,240.94,6.34082988]
[1733631378819,2.0734,240.97,240.94,6.34082988]
[1733631379923,2.0735,240.96,240.92,6.34082988]
[1733631380322,2.0735,240.96,240.94,6.34082988]
[1733631381124,6.34082988,241.01,240.94,6.34082988]
[1733631381322,2.0734,240.97,240.94,6.34082988]
[1733631385224,2.0731,241.01,240.96,6.34082988]
[1733631385427,1.3215,241.02,240.96,6.34082988]
[1733631385623,1.3215,241.02,240.98,6.34082988]
[1733631385824,2.073,241.02,240.98,8.41402988]
[1733631387028,2.0728,241.04,241.0,6.34082988]
[1733631388425,1.82,241.06,241.0,6.34082988]
[1733631388426,2.0728,241.03,241.0,6.34082988]
[1733631390730,1.82,241.06,241.02,6.34082988]
[1733631390731,2.0726,241.06,241.02,6.34082988]
[1733631393431,2.0727,241.05,241.02,6.34082988]
[1733631393733,2.0727,241.05,241.01,2.0729]
[1733631394126,2.0729,241.02,240.99,2.0731]
[1733631394331,2.0729,241.02,240.99,6.34082988]
[1733631396635,6.34082988,241.07,240.99,6.34082988]
[1733631396831,2.073,241.01,240.99,6.34082988]
[1733631397940,1.82,241.08,240.98,2.0732]
[1733631398237,1.82,241.08,241.0,6.34082988]
[1733631398238,8.16082988,241.08,241.0,6.34082988]
[1733631398433,2.073,241.01,240.95,1.82]
[1733631398634,6.34082988,241.04,240.96,6.34082988]
[1733631398827,6.34082988,241.02,240.94,6.34082988]
[1733631399031,6.34082988,241.0,240.87,2.5666]
[1733631399338,6.34082988,240.98,240.91,6.34082988]
[1733631400645,2.0736,240.95,240.91,6.34082988]
[1733631401043,2.0736,240.95,240.9,2.0739]
[1733631401241,2.0736,240.95,240.92,6.34082988]
[1733631401444,2.0736,240.94,240.92,6.34082988]
[1733631401844,6.34082988,240.96,240.87,2.0742]
[1733631402048,2.0738,240.92,240.87,8.41502988]
[1733631402238,6.34082988,240.96,240.87,6.34082988]
[1733631402444,2.074,240.9,240.87,6.34082988]
[1733631402648,6.34082988,240.94,240.87,6.34082988]
[1733631403450,6.34082988,240.92,240.85,6.34082988]
[1733631403650,2.0741,240.89,240.85,6.34082988]
[1733631403849,6.34082988,240.92,240.83,1.82]
[1733631404051,8.16082988,240.92,240.83,8.16082988]
[1733631404352,2.0742,240.88,240.85,6.34082988]
[1733631406147,2.0742,240.87,240.85,6.34082988]
[1733631407054,8.16082988,240.92,240.82,1.82]
[1733631407055,2.0743,240.86,240.82,1.82]
[1733631407250,2.0743,240.86,240.83,6.34082988]
[1733631407454,6.34082988,240.9,240.83,6.34082988]
[1733631409352,1.3234,241.01,240.82,1.82]
[1733631409549,6.34082988,240.91,240.83,6.34082988]
[1733631409750,8.16082988,240.91,240.83,6.34082988]
[1733631409951,6.34082988,240.89,240.83,6.34082988]
[1733631411658,2.0744,240.85,240.83,6.34082988]
[1733631413556,6.34082988,240.89,240.83,6.34082988]
[1733631414361,1.82,240.91,240.83,6.34082988]
[1733631414555,2.0741,240.88,240.83,6.34082988]
[1733631414755,6.34082988,240.9,240.83,6.34082988]
[1733631415661,2.0743,240.86,240.83,6.34082988]
[1733631420064,6.34082988,240.9,240.82,1.82]
[1733631420763,2.0744,240.85,240.82,8.16082988]
[1733631420968,2.6718,240.9,240.82,1.82]
[1733631421160,6.34082988,240.89,240.82,1.82]
[1733631421360,2.0745,240.83,240.82,1.82]
[1733631421566,6.34082988,240.87,240.79,6.34082988]
[1733631421865,2.0746,240.83,240.77,6.34082988]
[1733631422067,6.34082988,240.85,240.77,6.34082988]
[1733631422465,6.34082988,240.85,240.64,2.48574359]
[1733631422466,6.34082988,240.81,240.64,1.2599]
[1733631422666,6.34082988,240.79,240.71,6.34082988]
[1733631423066,2.0754,240.73,240.71,6.34082988]
[1733631423968,6.34082988,240.79,240.71,6.34082988]
[1733631423969,1.82,240.79,240.71,6.34082988]
[1733631424171,4.0206,240.9,240.78,6.34082988]
[1733631424365,6.34082988,240.87,240.8,6.34082988]
[1733631425067,2.0745,240.84,240.8,6.34082988]
[1733631425268,8.16082988,240.83,240.74,1.82]
[1733631425472,1.82,240.82,240.75,6.34082988]
[1733631425668,6.34082988,240.81,240.75,6.34082988]
[1733631425868,6.34082988,240.81,240.73,6.34082988]
[1733631426263,2.0752,240.75,240.73,6.34082988]
[1733631426664,2.0752,240.75,240.69,1.82]
[1733631426665,6.34082988,240.79,240.69,1.82]
[1733631426872,8.16082988,240.77,240.7,6.34082988]
[1733631427073,1.82,240.76,240.7,6.34082988]
[1733631427668,1.82,240.76,240.68,2.0758]
[1733631427870,1.82,240.76,240.7,6.34082988]
[1733631428675,6.34082988,240.75,240.68,6.34082988]
[1733631430272,2.0758,240.69,240.67,6.34082988]
[1733631430480,6.34082988,240.75,240.67,6.34082988]
[1733631432580,2.0757,240.7,240.67,6.34082988]
[1733631434183,6.34082988,240.75,240.67,6.34082988]
[1733631434383,2.0758,240.69,240.66,57.84126364]
[1733631438386,2.0757,240.71,240.68,6.34082988]
[1733631438588,1.82,240.77,240.7,6.34082988]
[1733631438884,1.82,240.77,240.66,51.50043376]
[1733631438885,8.16082988,240.77,240.66,51.50043376]
[1733631439185,2.0753,240.75,240.69,6.34082988]
[1733631439385,6.34082988,240.76,240.69,6.34082988]
[1733631439687,2.0756,240.72,240.69,6.34082988]
[1733631439874,6.34082988,240.76,240.69,6.34082988]
[1733631441584,2.0756,240.72,240.69,6.34082988]
[1733631441985,6.34082988,240.74,240.66,51.50043376]
[1733631442182,6.34082988,240.74,240.67,7.3795636]
[1733631442378,6.34082988,240.74,240.67,6.34082988]
[1733631442581,6.34082988,240.74,240.68,1.03877964]
[1733631442782,6.34082988,240.74,240.67,6.34082988]
[1733631442980,6.34082988,240.74,240.68,1.03878412]
[1733631443184,6.34082988,240.74,240.67,6.34082988]
[1733631443383,6.34082988,240.74,240.68,1.03878121]
[1733631443583,2.0757,240.7,240.67,6.34082988]
[1733631443779,2.0757,240.7,240.68,1.03878086]
[1733631443985,2.0757,240.7,240.67,6.34082988]
[1733631444285,2.0757,240.7,240.68,1.03877877]
[1733631444479,2.0757,240.7,240.69,1.03877877]
[1733631444680,2.0757,240.7,240.67,6.34082988]
[1733631444985,2.0757,240.7,240.68,1.03879035]
[1733631445185,2.0757,240.7,240.67,6.34082988]
[1733631445387,2.0757,240.7,240.68,1.03879048]
[1733631445589,2.0757,240.7,240.69,1.03879048]
[1733631445782,2.0757,240.7,240.69,7.37962036]
[1733631445983,2.0753,240.75,240.69,7.37962036]
[1733631446187,2.0753,240.75,240.74,6.34082988]
[1733631447388,2.0753,240.75,240.74,7.37949315]
[1733631447993,2.6563,240.88,240.74,7.37949315]
[1733631448190,2.0749,240.79,240.76,6.34082988]
[1733631448384,1.82,240.82,240.76,6.34082988]
[1733631448591,1.82,240.82,240.77,1.03843864]
[1733631448789,2.0749,240.79,240.78,1.03843864]
[1733631449088,2.0749,240.79,240.76,6.34082988]
[1733631449390,2.0749,240.79,240.77,1.03846625]
[1733631449691,6.34082988,240.89,240.79,2.0749]
[1733631449990,6.34082988,240.89,240.81,6.34082988]
[1733631450191,2.0745,240.85,240.82,1.0382815]
[1733631450390,2.0745,240.85,240.81,6.34082988]
[1733631450587,6.34082988,240.87,240.81,6.34082988]
[1733631450788,2.0745,240.83,240.79,6.34082988]
[1733631450991,2.0745,240.83,240.8,1.03830928]
[1733631451190,2.0745,240.83,240.79,6.34082988]
[1733631451393,2.0745,240.83,240.8,1.03830925]
[1733631451589,2.0745,240.83,240.79,6.34082988]
[1733631451789,2.0745,240.83,240.8,1.03831132]
[1733631452092,2.0745,240.83,240.79,6.34082988]
[1733631453288,2.0747,240.81,240.79,6.34082988]
[1733631454886,1.82,240.86,240.79,6.34082988]
[1733631455087,2.0746,240.82,240.79,6.34082988]
[1733631455491,6.34082988,240.85,240.77,3.895]
[1733631455691,2.0747,240.81,240.78,6.34082988]
[1733631457194,6.34082988,240.83,240.71,1.3831]
[1733631457395,6.34082988,240.83,240.74,6.34082988]
[1733631457800,2.075,240.78,240.74,6.34082988]
[1733631458196,2.0748,240.81,240.73,3.8954]
[1733631458397,6.34082988,240.8,240.73,6.34082988]
[1733631459201,6.34082988,240.8,240.72,6.34082988]
[1733631460698,2.0752,240.76,240.72,6.34082988]
[1733631461294,2.0753,240.75,240.7,2.0757]
[1733631461505,2.0753,240.75,240.71,6.34082988]
[1733631462204,6.34082988,240.78,240.71,6.34082988]
[1733631462400,1.82,240.81,240.68,6.34082988]
[1733631462401,6.34082988,240.76,240.68,6.34082988]
[1733631462605,8.16082988,240.76,240.68,6.34082988]
[1733631463212,8.16082988,240.76,240.66,2.076]
[1733631463411,8.16082988,240.76,240.68,6.34082988]
[1733631464097,8.16082988,240.76,240.66,2.076]
[1733631464098,2.0756,240.71,240.66,2.076]
[1733631464299,2.0756,240.71,240.68,6.34082988]
[1733631464500,8.16082988,240.76,240.68,6.34082988]
[1733631466209,8.16082988,240.76,240.65,1.82]
[1733631466408,8.16082988,240.76,240.66,7.37962437]
[1733631466409,6.34082988,240.74,240.66,7.37962437]
[1733631466608,6.34082988,240.74,240.66,6.34082988]
[1733631467307,2.0759,240.68,240.66,6.34082988]
[1733631468809,2.0759,240.68,240.65,1.82]
[1733631469011,2.0759,240.68,240.65,8.16082988]
[1733631471612,6.34082988,240.74,240.62,2.0763]
[1733631471819,6.34082988,240.74,240.65,6.34082988]
[1733631471820,2.0759,240.67,240.65,6.34082988]
[1733631472312,2.0758,240.69,240.65,8.41692988]
[1733631473217,2.0756,240.71,240.67,6.34082988]
[1733631473516,2.0756,240.71,240.69,6.34082988]
[1733631477729,2.0755,240.73,240.69,6.34082988]
[1733631478021,5.7918,240.75,240.69,6.34082988]
[1733631479020,2.7152,240.75,240.69,6.34082988]
[1733631479822,1.82,240.77,240.73,6.34082988]
[1733631480019,1.82,240.78,240.73,6.34082988]
[1733631481129,1.82,240.79,240.73,6.34082988]
[1733631481426,2.075,240.78,240.73,6.34082988]
[1733631481626,1.82,240.79,240.73,6.34082988]
[1733631482723,2.0751,240.77,240.73,8.41622988]
[1733631483823,2.0752,240.76,240.73,6.34082988]
[1733631484024,2.0752,240.76,240.72,2.0755]
[1733631484226,6.34082988,240.78,240.71,6.34082988]
[1733631484425,2.0754,240.74,240.71,6.34082988]
[1733631484622,6.34082988,240.78,240.71,6.34082988]
[1733631485527,2.0755,240.72,240.69,6.34082988]
[1733631486135,6.34082988,240.77,240.69,6.34082988]
[1733631486329,6.34082988,240.77,240.71,6.34082988]
[1733631487231,2.0756,240.72,240.71,6.34082988]
[1733631487433,1.82,240.79,240.71,6.34082988]
[1733631487734,1.82,240.79,240.73,6.34082988]
[1733631488637,2.0753,240.75,240.73,6.34082988]
[1733631488935,1.82,240.79,240.73,6.34082988]
[1733631489734,2.0753,240.74,240.71,6.34082988]
[1733631493239,4.0164,240.83,240.73,6.34082988]
[1733631493538,1.82,240.83,240.77,6.34082988]
[1733631493729,2.0748,240.81,240.76,2.0751]
[1733631493931,1.82,240.83,240.76,2.0751]
[1733631494135,1.82,240.83,240.78,6.34082988]
[1733631495441,2.0749,240.8,240.78,6.34082988]
[1733631496048,2.0746,240.82,240.78,6.34082988]
[1733631496343,1.82,240.83,240.78,6.34082988]
[1733631496544,1.82,240.83,240.78,8.41582988]
[1733631497139,1.82,240.83,240.8,6.34082988]
[1733631497650,3.8946,240.83,240.8,6.34082988]
[1733631498549,2.0746,240.83,240.8,6.34082988]
[1733631499251,3.9743,240.9,240.8,6.34082988]
[1733631499550,2.6129,240.9,240.84,6.34082988]
[1733631500850,2.0743,240.87,240.84,6.34082988]
[1733631501642,1.82,240.91,240.84,6.34082988]
[1733631501842,1.82,240.91,240.73,4.0744]
[1733631501843,1.82,240.92,240.86,6.34082988]
[1733631502052,1.82,240.93,240.86,6.34082988]
[1733631502451,2.074,240.9,240.86,6.34082988]
[1733631502853,2.6297,240.96,240.88,6.34082988]
[1733631503045,6.34082988,240.92,240.77,1.23207024]
[1733631503247,2.6297,240.96,240.88,6.34082988]
[1733631503545,3.1789,240.97,240.9,6.34082988]
[1733631504553,2.0737,240.93,240.9,6.34082988]
[1733631505250,2.0741,240.89,240.85,1.82]
[1733631505450,6.34082988,240.91,240.85,1.82]
[1733631505647,6.34082988,240.91,240.84,6.34082988]
[1733631506553,2.0743,240.87,240.84,6.34082988]
[1733631506856,6.34082988,240.91,240.82,6.34082988]
[1733631507248,6.34082988,240.87,240.79,6.34082988]
[1733631507451,8.16082988,240.87,240.79,6.34082988]
[1733631507651,6.34082988,240.85,240.79,6.34082988]
[1733631508052,2.0747,240.81,240.79,6.34082988]
[1733631508757,2.0746,240.82,240.79,6.34082988]
[1733631509758,2.0748,240.81,240.79,6.34082988]
[1733631509954,8.16082988,240.87,240.79,6.34082988]
[1733631511066,2.0747,240.81,240.79,6.34082988]
[1733631511961,2.0748,240.8,240.79,6.34082988]
[1733631512760,2.0751,240.77,240.62,1.22787631]
[1733631512958,1.82,240.82,240.66,1.3773]